[Event "Early-Titled-Tuesday-Blitz-August-29-2023"]
[Site "Chess.com"]
[Date "2023.08.29"]
[Round "2"]
[White "chessajedrezz2020"]
[Black "Jojo_898"]
[Result "0-1"]
[WhiteElo "2696"]
[BlackElo "2427"]
[TimeControl "180+1"]
[EndTime "8:19:06 PDT"]
[Termination "Jojo_898 won on time"]

1. Nf3 {[%clk 0:02:16]} 1... d6 {[%clk 0:02:59.5]} 2. e4 {[%clk 0:02:11.7]} 2...
Nf6 {[%clk 0:02:59.4]} 3. Nc3 {[%clk 0:02:11.2]} 3... g6 {[%clk 0:02:58.8]} 4.
d4 {[%clk 0:02:11.1]} 4... c6 {[%clk 0:02:59.1]} 5. a4 {[%clk 0:02:10.1]} 5...
Bg7 {[%clk 0:02:59.1]} 6. h3 {[%clk 0:02:10]} 6... O-O {[%clk 0:02:58.4]} 7. Bc4
{[%clk 0:02:06.6]} 7... Nbd7 {[%clk 0:02:57.8]} 8. e5 {[%clk 0:02:05.6]} 8...
Nd5 {[%clk 0:02:35.5]} 9. Bxd5 {[%clk 0:01:41.6]} 9... cxd5 {[%clk 0:02:33.6]}
10. exd6 {[%clk 0:01:36.8]} 10... e6 {[%clk 0:02:29.7]} 11. O-O {[%clk
0:01:10.6]} 11... Nb6 {[%clk 0:02:21.9]} 12. b3 {[%clk 0:01:02.9]} 12... Bd7
{[%clk 0:02:04.1]} 13. Ba3 {[%clk 0:00:36.5]} 13... Nc8 {[%clk 0:02:02.1]} 14.
Ne5 {[%clk 0:00:24.7]} 14... f6 {[%clk 0:01:56.2]} 15. Nd3 {[%clk 0:00:11.5]}
15... Bc6 {[%clk 0:01:47.5]} 16. d7 {[%clk 0:00:08.6]} 16... Qxd7 {[%clk
0:01:46.5]} 17. Bxf8 {[%clk 0:00:07.7]} 17... Bxf8 {[%clk 0:01:47.4]} 18. Nc5
{[%clk 0:00:07.3]} 18... Qf7 {[%clk 0:01:43.7]} 19. Re1 {[%clk 0:00:06.9]} 19...
e5 {[%clk 0:01:43.9]} 20. b4 {[%clk 0:00:07]} 20... e4 {[%clk 0:01:38.2]} 21. b5
{[%clk 0:00:06.8]} 21... Be8 {[%clk 0:01:37.6]} 22. f3 {[%clk 0:00:05.6]} 22...
b6 {[%clk 0:01:36.1]} 23. Nb3 {[%clk 0:00:05.2]} 23... f5 {[%clk 0:01:35.2]} 24.
fxe4 {[%clk 0:00:05.3]} 24... dxe4 {[%clk 0:01:30.7]} 25. Rf1 {[%clk 0:00:05.2]}
25... Qg7 {[%clk 0:01:22.6]} 26. Nd5 {[%clk 0:00:04.7]} 26... Nd6 {[%clk
0:01:21.5]} 27. Nf4 {[%clk 0:00:04.7]} 27... Bf7 {[%clk 0:01:21.1]} 28. d5
{[%clk 0:00:05.1]} 28... Be7 {[%clk 0:01:17]} 29. Nd4 {[%clk 0:00:05.4]} 29...
Bf6 {[%clk 0:01:16.8]} 30. Nde6 {[%clk 0:00:06]} 30... Qh6 {[%clk 0:01:12.9]}
31. Ra2 {[%clk 0:00:06.2]} 31... Nc4 {[%clk 0:01:11.4]} 32. Qe2 {[%clk
0:00:06.3]} 32... Nd6 {[%clk 0:00:57.3]} 33. Qf2 {[%clk 0:00:05.7]} 33... g5
{[%clk 0:00:57.4]} 34. Qg3 {[%clk 0:00:05.6]} 34... Kh8 {[%clk 0:00:54.9]} 35.
Nh5 {[%clk 0:00:05.6]} 35... Qxh5 {[%clk 0:00:38.7]} 36. Qxd6 {[%clk 0:00:05.5]}
36... e3 {[%clk 0:00:29.5]} 37. Nc7 {[%clk 0:00:05.3]} 37... Bd4 {[%clk
0:00:25.9]} 38. Re1 {[%clk 0:00:05]} 38... e2+ {[%clk 0:00:25]} 39. Kh1 {[%clk
0:00:05.1]} 39... Rg8 {[%clk 0:00:25.3]} 40. Qe7 {[%clk 0:00:04.7]} 40... g4
{[%clk 0:00:24.1]} 41. Qxe2 {[%clk 0:00:05.3]} 41... Qh4 {[%clk 0:00:20.4]} 42.
c3 {[%clk 0:00:03.3]} 42... gxh3 {[%clk 0:00:19.2]} 43. cxd4 {[%clk 0:00:03.1]}
43... hxg2+ {[%clk 0:00:19.2]} 44. Kg1 {[%clk 0:00:03.5]} 44... Qh1+ {[%clk
0:00:17.5]} 45. Kf2 {[%clk 0:00:04.1]} 45... g1=Q+ {[%clk 0:00:17.5]} 46. Rxg1
{[%clk 0:00:04.7]} 46... Qxg1+ {[%clk 0:00:17.6]} 47. Kf3 {[%clk 0:00:04.9]}
47... Bh5+ {[%clk 0:00:17.3]} 48. Kf4 {[%clk 0:00:04.3]} 48... Bxe2 {[%clk
0:00:17.7]} 49. Rxe2 {[%clk 0:00:04.3]} 49... Qxd4+ {[%clk 0:00:17.8]} 50. Kxf5
{[%clk 0:00:04.1]} 50... Qd3+ {[%clk 0:00:17.3]} 51. Re4 {[%clk 0:00:04.5]}
51... Qf3+ {[%clk 0:00:15]} 52. Ke5 {[%clk 0:00:04.6]} 52... Qh5+ {[%clk
0:00:14]} 53. Kd4 {[%clk 0:00:04.5]} 53... Rc8 {[%clk 0:00:14.1]} 54. d6 {[%clk
0:00:04.1]} 54... Qd1+ {[%clk 0:00:12.7]} 55. Ke5 {[%clk 0:00:04.2]} 55... Qa1+
{[%clk 0:00:13]} 56. Ke6 {[%clk 0:00:04.1]} 56... Qa2+ {[%clk 0:00:12.7]} 57.
Kd7 {[%clk 0:00:04.1]} 57... Qd2 {[%clk 0:00:12.4]} 58. Kxc8 {[%clk 0:00:03.6]}
58... Qxd6 {[%clk 0:00:12.6]} 59. Re6 {[%clk 0:00:02.7]} 59... Qd1 {[%clk
0:00:11.9]} 60. Re7 {[%clk 0:00:01.2]} 60... h5 {[%clk 0:00:11.9]} 0-1

[Event "Early-Titled-Tuesday-Blitz-August-29-2023"]
[Site "Chess.com"]
[Date "2023.08.29"]
[Round "2"]
[White "crescentmoon2411"]
[Black "RandomNoob04"]
[Result "1-0"]
[WhiteElo "3027"]
[BlackElo "2651"]
[TimeControl "180+1"]
[EndTime "8:19:11 PDT"]
[Termination "crescentmoon2411 won by resignation"]

1. e4 {[%clk 0:02:56.6]} 1... e5 {[%clk 0:03:00.7]} 2. Nf3 {[%clk 0:02:56.5]}
2... Nf6 {[%clk 0:03:01.3]} 3. Nxe5 {[%clk 0:02:47.7]} 3... Nxe4 {[%clk
0:03:01.8]} 4. Qe2 {[%clk 0:02:40.1]} 4... Qe7 {[%clk 0:03:02.1]} 5. Qxe4 {[%clk
0:02:37.2]} 5... d6 {[%clk 0:03:02.6]} 6. d4 {[%clk 0:02:22.6]} 6... dxe5 {[%clk
0:03:03]} 7. dxe5 {[%clk 0:02:19.6]} 7... Nc6 {[%clk 0:03:03.1]} 8. Bb5 {[%clk
0:01:52.5]} 8... Bd7 {[%clk 0:03:03]} 9. Nc3 {[%clk 0:01:50.1]} 9... O-O-O
{[%clk 0:02:57.8]} 10. O-O {[%clk 0:01:39.4]} 10... Nxe5 {[%clk 0:02:43.2]} 11.
Bf4 {[%clk 0:01:36.8]} 11... Ng6 {[%clk 0:02:39.6]} 12. Qf3 {[%clk 0:00:54.8]}
12... Nxf4 {[%clk 0:01:56.7]} 13. Qxf4 {[%clk 0:00:54.7]} 13... Qb4 {[%clk
0:01:57.5]} 14. Bxd7+ {[%clk 0:00:38.1]} 14... Rxd7 {[%clk 0:01:58.4]} 15. Qf5
{[%clk 0:00:22.1]} 15... Qxb2 {[%clk 0:01:39]} 16. Rad1 {[%clk 0:00:18.1]} 16...
Bd6 {[%clk 0:01:39.1]} 17. Ne4 {[%clk 0:00:18.2]} 17... Qe5 {[%clk 0:01:15.8]}
18. Nxd6+ {[%clk 0:00:14.8]} 18... cxd6 {[%clk 0:01:16.5]} 19. Qf3 {[%clk
0:00:14.1]} 19... Re8 {[%clk 0:01:13.4]} 20. Rd3 {[%clk 0:00:11.8]} 20... Qa5
{[%clk 0:01:04.4]} 21. a3 {[%clk 0:00:08.9]} 21... Kb8 {[%clk 0:01:03.3]} 22. h4
{[%clk 0:00:07.3]} 22... Qa4 {[%clk 0:00:57.8]} 23. g3 {[%clk 0:00:06.9]} 23...
Qxc2 {[%clk 0:00:53.9]} 24. Rfd1 {[%clk 0:00:06.7]} 24... Rde7 {[%clk
0:00:32.9]} 25. Kg2 {[%clk 0:00:05.5]} 25... Qe2 {[%clk 0:00:28]} 26. Qf4 {[%clk
0:00:04.5]} 26... Qe4+ {[%clk 0:00:28.1]} 27. Qxe4 {[%clk 0:00:05.1]} 27... Rxe4
{[%clk 0:00:29]} 28. Rxd6 {[%clk 0:00:05.8]} 28... R8e7 {[%clk 0:00:25.1]} 29.
h5 {[%clk 0:00:06.1]} 29... h6 {[%clk 0:00:22.3]} 30. Rd8+ {[%clk 0:00:06.5]}
30... Kc7 {[%clk 0:00:22.6]} 31. Rg8 {[%clk 0:00:07.1]} 31... f6 {[%clk
0:00:19.5]} 32. Rc1+ {[%clk 0:00:06.8]} 32... Kd7 {[%clk 0:00:19.3]} 33. Rcc8
{[%clk 0:00:06.3]} 33... R4e5 {[%clk 0:00:16.4]} 34. g4 {[%clk 0:00:05.6]} 34...
f5 {[%clk 0:00:15.6]} 35. f3 {[%clk 0:00:03.3]} 35... fxg4 {[%clk 0:00:13.2]}
36. fxg4 {[%clk 0:00:04.2]} 36... Rg5 {[%clk 0:00:13.9]} 37. Kf3 {[%clk
0:00:03.5]} 37... Ra5 {[%clk 0:00:10]} 38. Rgd8+ {[%clk 0:00:02.7]} 38... Ke6
{[%clk 0:00:10.3]} 39. Rd3 {[%clk 0:00:03.4]} 39... Ra4 {[%clk 0:00:09]} 40. Kg3
{[%clk 0:00:03.7]} 40... Kf6 {[%clk 0:00:07.3]} 41. Rf3+ {[%clk 0:00:04]} 41...
Ke6 {[%clk 0:00:06.1]} 42. Re3+ {[%clk 0:00:04.2]} 42... Kd7 {[%clk 0:00:06.5]}
43. Rec3 {[%clk 0:00:04.9]} 43... Re3+ {[%clk 0:00:05.7]} 44. Rxe3 {[%clk
0:00:05.4]} 44... Kxc8 {[%clk 0:00:06.4]} 45. Re7 {[%clk 0:00:05.9]} 45... Rxa3+
{[%clk 0:00:06.5]} 46. Kf4 {[%clk 0:00:06.5]} 46... Ra4+ {[%clk 0:00:06.6]} 47.
Kf3 {[%clk 0:00:06.7]} 47... a5 {[%clk 0:00:05.1]} 48. Rxg7 {[%clk 0:00:06.3]}
48... Ra1 {[%clk 0:00:05.8]} 49. g5 {[%clk 0:00:06.7]} 49... hxg5 {[%clk
0:00:05]} 50. h6 {[%clk 0:00:07.3]} 50... Rh1 {[%clk 0:00:05.6]} 51. h7 {[%clk
0:00:07.8]} 51... Kb8 {[%clk 0:00:02.8]} 52. Rg8+ {[%clk 0:00:07.9]} 52... Ka7
{[%clk 0:00:03.6]} 53. h8=Q {[%clk 0:00:08.6]} 53... Rxh8 {[%clk 0:00:04.2]} 54.
Rxh8 {[%clk 0:00:09.5]} 54... b5 {[%clk 0:00:04.5]} 55. Ke4 {[%clk 0:00:10]}
55... a4 {[%clk 0:00:04.6]} 56. Kd4 {[%clk 0:00:10.2]} 56... Kb6 {[%clk
0:00:05.5]} 57. Rg8 {[%clk 0:00:09.4]} 57... Ka5 {[%clk 0:00:05.3]} 58. Kc3
{[%clk 0:00:09.5]} 58... b4+ {[%clk 0:00:05.3]} 59. Kc4 {[%clk 0:00:10]} 59...
a3 {[%clk 0:00:05.4]} 60. Kb3 {[%clk 0:00:10.3]} 60... Kb5 {[%clk 0:00:05.6]}
61. Rxg5+ {[%clk 0:00:10.6]} 61... Kc6 {[%clk 0:00:06.2]} 62. Kxb4 {[%clk
0:00:11.3]} 62... a2 {[%clk 0:00:06.7]} 63. Ra5 {[%clk 0:00:12]} 63... a1=Q
{[%clk 0:00:07.6]} 64. Rxa1 {[%clk 0:00:12.2]} 1-0

[Event "Early-Titled-Tuesday-Blitz-August-29-2023"]
[Site "Chess.com"]
[Date "2023.08.29"]
[Round "2"]
[White "mikerahal"]
[Black "MFBerna"]
[Result "1-0"]
[WhiteElo "2319"]
[BlackElo "2559"]
[TimeControl "180+1"]
[EndTime "8:19:11 PDT"]
[Termination "mikerahal won by resignation"]

1. e4 {[%clk 0:03:00.9]} 1... e5 {[%clk 0:02:55.7]} 2. Nf3 {[%clk 0:02:59.9]}
2... Nc6 {[%clk 0:02:55.9]} 3. Bb5 {[%clk 0:02:57.5]} 3... Nf6 {[%clk
0:02:55.3]} 4. O-O {[%clk 0:02:56.8]} 4... Nxe4 {[%clk 0:02:51.1]} 5. d4 {[%clk
0:02:56.6]} 5... Nd6 {[%clk 0:02:50.8]} 6. Bxc6 {[%clk 0:02:57.1]} 6... dxc6
{[%clk 0:02:51.7]} 7. dxe5 {[%clk 0:02:57.5]} 7... Nf5 {[%clk 0:02:51.9]} 8.
Qxd8+ {[%clk 0:02:58.1]} 8... Kxd8 {[%clk 0:02:52.8]} 9. Rd1+ {[%clk 0:02:58.4]}
9... Ke8 {[%clk 0:02:49.8]} 10. Nc3 {[%clk 0:02:58.9]} 10... Be7 {[%clk
0:02:45.5]} 11. h3 {[%clk 0:02:58.7]} 11... Be6 {[%clk 0:02:39.2]} 12. Ne2
{[%clk 0:02:51]} 12... Bd5 {[%clk 0:02:33.6]} 13. Nfd4 {[%clk 0:02:46.5]} 13...
Nxd4 {[%clk 0:02:33.6]} 14. Nxd4 {[%clk 0:02:45.5]} 14... Rd8 {[%clk 0:02:25.5]}
15. Nf5 {[%clk 0:02:42]} 15... Bf8 {[%clk 0:02:22]} 16. Bg5 {[%clk 0:02:40.8]}
16... Rd7 {[%clk 0:02:21.7]} 17. b3 {[%clk 0:02:36.9]} 17... h6 {[%clk
0:02:20.8]} 18. Bf4 {[%clk 0:02:25.5]} 18... g6 {[%clk 0:02:13.9]} 19. Ne3
{[%clk 0:02:19.8]} 19... Bg7 {[%clk 0:02:13.2]} 20. c4 {[%clk 0:02:04.6]} 20...
Be6 {[%clk 0:02:13.2]} 21. Ng4 {[%clk 0:01:45.2]} 21... Ke7 {[%clk 0:01:57.2]}
22. Rxd7+ {[%clk 0:01:43.7]} 22... Bxd7 {[%clk 0:01:58.1]} 23. Rd1 {[%clk
0:01:38.1]} 23... Bf5 {[%clk 0:01:45.1]} 24. f3 {[%clk 0:01:32.1]} 24... h5
{[%clk 0:01:38.6]} 25. Nf6 {[%clk 0:01:20.1]} 25... Rd8 {[%clk 0:01:30.9]} 26.
Re1 {[%clk 0:01:00.3]} 26... Bc2 {[%clk 0:01:22.7]} 27. Bg5 {[%clk 0:00:57.9]}
27... Ke6 {[%clk 0:01:11.2]} 28. Nxh5 {[%clk 0:00:46.3]} 28... Rg8 {[%clk
0:00:59.1]} 29. Nxg7+ {[%clk 0:00:42.3]} 29... Rxg7 {[%clk 0:01:00]} 30. Re2
{[%clk 0:00:33]} 30... Bb1 {[%clk 0:00:51.7]} 31. Bf6 {[%clk 0:00:28.6]} 31...
Rg8 {[%clk 0:00:51.8]} 32. Rd2 {[%clk 0:00:29.1]} 32... a5 {[%clk 0:00:41.4]}
33. Kf2 {[%clk 0:00:28.5]} 33... c5 {[%clk 0:00:33.8]} 34. a4 {[%clk 0:00:27.2]}
34... Ra8 {[%clk 0:00:28.7]} 35. g4 {[%clk 0:00:23.4]} 35... g5 {[%clk
0:00:24.4]} 36. Rd5 {[%clk 0:00:20.4]} 36... b6 {[%clk 0:00:18.3]} 37. Bxg5
{[%clk 0:00:19.8]} 37... Bc2 {[%clk 0:00:15]} 38. Bf6 {[%clk 0:00:17.2]} 38...
Bxb3 {[%clk 0:00:15.1]} 39. f4 {[%clk 0:00:16.6]} 39... Bxc4 {[%clk 0:00:13.9]}
40. Rd2 {[%clk 0:00:13.8]} 40... Bd5 {[%clk 0:00:05]} 41. f5+ {[%clk 0:00:13.4]}
41... Kd7 {[%clk 0:00:05.1]} 42. Rxd5+ {[%clk 0:00:14.1]} 42... Kc6 {[%clk
0:00:06]} 43. Rd3 {[%clk 0:00:13.8]} 43... c4 {[%clk 0:00:05.8]} 44. Rc3 {[%clk
0:00:12.3]} 44... Kc5 {[%clk 0:00:06.1]} 45. e6 {[%clk 0:00:11.6]} 45... fxe6
{[%clk 0:00:07]} 46. fxe6 {[%clk 0:00:11.8]} 46... Rf8 {[%clk 0:00:07.2]} 47. g5
{[%clk 0:00:11.4]} 47... Re8 {[%clk 0:00:07.1]} 48. e7 {[%clk 0:00:11.5]} 48...
b5 {[%clk 0:00:06.9]} 49. axb5 {[%clk 0:00:11]} 49... a4 {[%clk 0:00:07.4]} 50.
Ke3 {[%clk 0:00:10.4]} 50... Kb4 {[%clk 0:00:06.5]} 51. Kd4 {[%clk 0:00:10.4]}
51... a3 {[%clk 0:00:04.1]} 52. Rxc4+ {[%clk 0:00:10.2]} 52... Kb3 {[%clk
0:00:05]} 53. Rxc7 {[%clk 0:00:09.8]} 53... a2 {[%clk 0:00:05.3]} 54. Ra7 {[%clk
0:00:09.8]} 54... Rb8 {[%clk 0:00:02.5]} 55. b6 {[%clk 0:00:07.2]} 55... Rxb6
{[%clk 0:00:02.4]} 56. Rxa2 {[%clk 0:00:07]} 56... Rb4+ {[%clk 0:00:03.3]} 57.
Ke5 {[%clk 0:00:06.7]} 57... Kxa2 {[%clk 0:00:03.6]} 58. e8=Q {[%clk 0:00:06.7]}
58... Rb3 {[%clk 0:00:03.5]} 59. Qe6 {[%clk 0:00:06.8]} 59... Ka3 {[%clk
0:00:02.6]} 60. Qxb3+ {[%clk 0:00:07.7]} 60... Kxb3 {[%clk 0:00:03.1]} 61. g6
{[%clk 0:00:08.6]} 61... Kc4 {[%clk 0:00:03.8]} 62. g7 {[%clk 0:00:09.5]} 62...
Kd3 {[%clk 0:00:04.7]} 63. g8=Q {[%clk 0:00:10.4]} 1-0

[Event "Early-Titled-Tuesday-Blitz-August-29-2023"]
[Site "Chess.com"]
[Date "2023.08.29"]
[Round "2"]
[White "tetrix83"]
[Black "Kostukov_Alex"]
[Result "1-0"]
[WhiteElo "2528"]
[BlackElo "2344"]
[TimeControl "180+1"]
[EndTime "8:19:15 PDT"]
[Termination "tetrix83 won on time"]

1. e4 {[%clk 0:03:00.9]} 1... c5 {[%clk 0:02:59.4]} 2. Nf3 {[%clk 0:03:00.6]}
2... g6 {[%clk 0:02:59.8]} 3. c3 {[%clk 0:03:00.2]} 3... Bg7 {[%clk 0:02:59.3]}
4. d4 {[%clk 0:03:00.7]} 4... cxd4 {[%clk 0:02:59.7]} 5. cxd4 {[%clk 0:03:01.6]}
5... d5 {[%clk 0:03:00.2]} 6. e5 {[%clk 0:03:01.7]} 6... Nc6 {[%clk 0:03:00.3]}
7. Bb5 {[%clk 0:02:54.7]} 7... Bg4 {[%clk 0:02:57.5]} 8. O-O {[%clk 0:02:53]}
8... Nh6 {[%clk 0:02:54.1]} 9. h3 {[%clk 0:02:49.7]} 9... Bxf3 {[%clk
0:02:53.7]} 10. Qxf3 {[%clk 0:02:50.6]} 10... Nf5 {[%clk 0:02:53.2]} 11. Qd3
{[%clk 0:02:41]} 11... O-O {[%clk 0:02:49]} 12. Nc3 {[%clk 0:02:39.5]} 12...
Nfxd4 {[%clk 0:02:35.5]} 13. Bxc6 {[%clk 0:02:36.1]} 13... Nxc6 {[%clk
0:02:34.3]} 14. f4 {[%clk 0:02:36.3]} 14... e6 {[%clk 0:02:30.7]} 15. Ne2 {[%clk
0:02:28.5]} 15... f6 {[%clk 0:02:30]} 16. exf6 {[%clk 0:02:27.3]} 16... Qxf6
{[%clk 0:02:30.1]} 17. Be3 {[%clk 0:02:23.9]} 17... Qxb2 {[%clk 0:02:16.6]} 18.
Rab1 {[%clk 0:02:23.6]} 18... Qxa2 {[%clk 0:02:16.6]} 19. Rxb7 {[%clk
0:02:23.5]} 19... Qc4 {[%clk 0:02:14.9]} 20. Qd2 {[%clk 0:02:13.4]} 20... d4
{[%clk 0:02:09.4]} 21. Bf2 {[%clk 0:02:05.9]} 21... d3 {[%clk 0:02:09.2]} 22.
Rc1 {[%clk 0:02:06]} 22... Qa6 {[%clk 0:02:03.3]} 23. Rc7 {[%clk 0:01:57.9]}
23... Na5 {[%clk 0:01:39.8]} 24. Nd4 {[%clk 0:01:34.3]} 24... Rad8 {[%clk
0:01:17]} 25. Nc6 {[%clk 0:01:06.4]} 25... Nb3 {[%clk 0:01:10.2]} 26. Qb4 {[%clk
0:00:55]} 26... Nxc1 {[%clk 0:01:04.2]} 27. Qe7 {[%clk 0:00:54]} 27... Qa1
{[%clk 0:01:03.9]} 28. Nxd8 {[%clk 0:00:42.1]} 28... Ne2+ {[%clk 0:01:02.6]} 29.
Kh2 {[%clk 0:00:42.1]} 29... Qf6 {[%clk 0:00:52]} 30. Nxe6 {[%clk 0:00:34.6]}
30... Qxe7 {[%clk 0:00:48.4]} 31. Rxe7 {[%clk 0:00:34.1]} 31... Bf6 {[%clk
0:00:41]} 32. Rd7 {[%clk 0:00:25]} 32... Re8 {[%clk 0:00:37.6]} 33. Nc7 {[%clk
0:00:20.4]} 33... Re7 {[%clk 0:00:37.7]} 34. Rd8+ {[%clk 0:00:17.6]} 34... Kf7
{[%clk 0:00:35.9]} 35. Nd5 {[%clk 0:00:17.8]} 35... Rb7 {[%clk 0:00:23.9]} 36.
Nxf6 {[%clk 0:00:17.5]} 36... Kxf6 {[%clk 0:00:24]} 37. Rxd3 {[%clk 0:00:17.8]}
37... Nxf4 {[%clk 0:00:24.3]} 38. Rf3 {[%clk 0:00:17.9]} 38... Kg5 {[%clk
0:00:22.7]} 39. Be3 {[%clk 0:00:18.1]} 39... Rb4 {[%clk 0:00:22.3]} 40. g3
{[%clk 0:00:18.3]} 40... a5 {[%clk 0:00:21.6]} 41. Bxf4+ {[%clk 0:00:18]} 41...
Kh5 {[%clk 0:00:17.2]} 42. g4+ {[%clk 0:00:15.9]} 42... Kh4 {[%clk 0:00:17.3]}
43. Bg3+ {[%clk 0:00:16.3]} 43... Kg5 {[%clk 0:00:17.5]} 44. Ra3 {[%clk
0:00:16.5]} 44... a4 {[%clk 0:00:17.3]} 45. Bf2 {[%clk 0:00:15.4]} 45... Rb2
{[%clk 0:00:17.2]} 46. Kg2 {[%clk 0:00:15.4]} 46... h5 {[%clk 0:00:14.4]} 47.
Rxa4 {[%clk 0:00:14.5]} 47... hxg4 {[%clk 0:00:14.8]} 48. Rxg4+ {[%clk
0:00:12.5]} 48... Kh5 {[%clk 0:00:15.3]} 49. Rh4+ {[%clk 0:00:12.1]} 49... Kg5
{[%clk 0:00:15]} 50. Rc4 {[%clk 0:00:12.7]} 50... Rd2 {[%clk 0:00:14.1]} 51.
Rc5+ {[%clk 0:00:12.7]} 51... Kh6 {[%clk 0:00:11.8]} 52. Kf3 {[%clk 0:00:12.9]}
52... Rd3+ {[%clk 0:00:10.2]} 53. Be3+ {[%clk 0:00:13.2]} 53... Kg7 {[%clk
0:00:09.2]} 54. Re5 {[%clk 0:00:13.3]} 54... Kf6 {[%clk 0:00:09.2]} 55. Re4
{[%clk 0:00:13.5]} 55... Rb3 {[%clk 0:00:08.8]} 56. Kf4 {[%clk 0:00:12.3]} 56...
Ra3 {[%clk 0:00:06.9]} 57. Bd4+ {[%clk 0:00:12.1]} 57... Kf7 {[%clk 0:00:07.3]}
58. Kg4 {[%clk 0:00:11.5]} 58... Ra2 {[%clk 0:00:06.5]} 59. Rf4+ {[%clk
0:00:11.3]} 59... Kg8 {[%clk 0:00:05.6]} 60. Kg5 {[%clk 0:00:10.4]} 60... Rg2+
{[%clk 0:00:03.8]} 61. Kf6 {[%clk 0:00:10.2]} 61... Kh7 {[%clk 0:00:03.8]} 62.
Rh4+ {[%clk 0:00:09.8]} 62... Kg8 {[%clk 0:00:03.9]} 63. Ke6 {[%clk 0:00:09.1]}
1-0

[Event "Early-Titled-Tuesday-Blitz-August-29-2023"]
[Site "Chess.com"]
[Date "2023.08.29"]
[Round "2"]
[White "Andreikka"]
[Black "FontVella8"]
[Result "1-0"]
[WhiteElo "3024"]
[BlackElo "2649"]
[TimeControl "180+1"]
[EndTime "8:19:16 PDT"]
[Termination "Andreikka won by resignation"]

1. Nf3 {[%clk 0:02:58.1]} 1... Nf6 {[%clk 0:02:59.6]} 2. g3 {[%clk 0:02:58.6]}
2... b6 {[%clk 0:02:59.7]} 3. c4 {[%clk 0:02:57.4]} 3... Bb7 {[%clk 0:03:00.2]}
4. Nc3 {[%clk 0:02:57.9]} 4... g6 {[%clk 0:02:58.8]} 5. d4 {[%clk 0:02:57.2]}
5... Bg7 {[%clk 0:02:59.3]} 6. d5 {[%clk 0:02:57.2]} 6... O-O {[%clk 0:02:57.6]}
7. Bg2 {[%clk 0:02:57.3]} 7... e6 {[%clk 0:02:58.2]} 8. O-O {[%clk 0:02:53]}
8... Na6 {[%clk 0:02:56.2]} 9. Nd4 {[%clk 0:02:51.9]} 9... exd5 {[%clk
0:02:54.2]} 10. cxd5 {[%clk 0:02:51.6]} 10... Re8 {[%clk 0:02:52.8]} 11. Qc2
{[%clk 0:02:35.4]} 11... Nb4 {[%clk 0:02:46.1]} 12. Qb3 {[%clk 0:02:35.3]} 12...
a5 {[%clk 0:02:46.7]} 13. Rd1 {[%clk 0:02:33]} 13... Qc8 {[%clk 0:02:36.6]} 14.
Ndb5 {[%clk 0:02:17.5]} 14... Na6 {[%clk 0:02:27.3]} 15. h3 {[%clk 0:02:13.8]}
15... Nc5 {[%clk 0:02:27.6]} 16. Qc2 {[%clk 0:02:14.2]} 16... h6 {[%clk
0:01:47.3]} 17. d6 {[%clk 0:02:00.1]} 17... Bxg2 {[%clk 0:01:47]} 18. Kxg2
{[%clk 0:02:01]} 18... Qb7+ {[%clk 0:01:40.6]} 19. Kg1 {[%clk 0:01:59.8]} 19...
Ne6 {[%clk 0:01:07.9]} 20. dxc7 {[%clk 0:01:59.6]} 20... Bf8 {[%clk 0:01:08.4]}
21. Na4 {[%clk 0:01:14.6]} 21... Rac8 {[%clk 0:00:57.3]} 22. Bf4 {[%clk
0:00:54.7]} 22... Nxf4 {[%clk 0:00:50.8]} 23. gxf4 {[%clk 0:00:55.6]} 23... Nd5
{[%clk 0:00:51.5]} 24. e3 {[%clk 0:00:40.4]} 24... Nxc7 {[%clk 0:00:39.6]} 25.
Nxc7 {[%clk 0:00:33.7]} 25... Rxc7 {[%clk 0:00:39.5]} 26. Qe2 {[%clk 0:00:33.5]}
26... b5 {[%clk 0:00:38.1]} 27. Nc3 {[%clk 0:00:33.3]} 27... Rc5 {[%clk
0:00:36.7]} 28. Qd3 {[%clk 0:00:29.4]} 28... d6 {[%clk 0:00:32.1]} 29. Nd5
{[%clk 0:00:26.5]} 29... Rec8 {[%clk 0:00:28.1]} 30. f5 {[%clk 0:00:23]} 30...
Bg7 {[%clk 0:00:20.1]} 31. fxg6 {[%clk 0:00:22.2]} 31... fxg6 {[%clk 0:00:21]}
32. Qxg6 {[%clk 0:00:21.1]} 32... Rf8 {[%clk 0:00:18.5]} 33. Qg2 {[%clk
0:00:17.5]} 33... Qf7 {[%clk 0:00:17.1]} 34. Rd2 {[%clk 0:00:14.6]} 34... Kh8
{[%clk 0:00:16.6]} 35. Kh1 {[%clk 0:00:14.3]} 35... Be5 {[%clk 0:00:05.3]} 36.
f4 {[%clk 0:00:14.1]} 36... Rg8 {[%clk 0:00:05]} 37. Qf3 {[%clk 0:00:13.7]}
37... Bg7 {[%clk 0:00:03.4]} 38. Rad1 {[%clk 0:00:13.9]} 38... Qf5 {[%clk
0:00:02.6]} 39. e4 {[%clk 0:00:13.6]} 39... Qf7 {[%clk 0:00:02.5]} 40. b3 {[%clk
0:00:14]} 40... Bf8 {[%clk 0:00:02.9]} 41. f5 {[%clk 0:00:12.9]} 41... Bg7
{[%clk 0:00:02.5]} 42. f6 {[%clk 0:00:13.4]} 42... Bf8 {[%clk 0:00:03]} 43. Rg2
{[%clk 0:00:13.8]} 43... Rg6 {[%clk 0:00:03.1]} 44. Rdg1 {[%clk 0:00:13]} 44...
Rxg2 {[%clk 0:00:02.8]} 45. Qxg2 {[%clk 0:00:13.6]} 45... Kh7 {[%clk 0:00:02.2]}
46. Qg4 {[%clk 0:00:14.1]} 46... Rxd5 {[%clk 0:00:02.4]} 47. exd5 {[%clk
0:00:13.3]} 47... Qxd5+ {[%clk 0:00:02.8]} 48. Qg2 {[%clk 0:00:13.7]} 48... Qf7
{[%clk 0:00:03.1]} 49. Qe4+ {[%clk 0:00:13.8]} 49... Kh8 {[%clk 0:00:03.3]} 50.
Qg6 {[%clk 0:00:14.5]} 50... Qd5+ {[%clk 0:00:02.1]} 51. Rg2 {[%clk 0:00:15]}
51... Qd1+ {[%clk 0:00:02.2]} 52. Kh2 {[%clk 0:00:15.1]} 52... Qd5 {[%clk
0:00:03]} 53. f7 {[%clk 0:00:14.5]} 53... Qe5+ {[%clk 0:00:03.1]} 54. Qg3 {[%clk
0:00:15.2]} 54... Bg7 {[%clk 0:00:02.1]} 55. Qxe5 {[%clk 0:00:15.4]} 55... Bxe5+
{[%clk 0:00:02]} 56. Kg1 {[%clk 0:00:15.5]} 56... Bg7 {[%clk 0:00:02.9]} 57. Kf2
{[%clk 0:00:15.1]} 57... a4 {[%clk 0:00:02.1]} 58. Kf3 {[%clk 0:00:15.3]} 58...
axb3 {[%clk 0:00:02.1]} 59. axb3 {[%clk 0:00:15.9]} 59... b4 {[%clk 0:00:03]}
60. Ke4 {[%clk 0:00:15.8]} 1-0